[Event "23rd Alekhine FIDE 2019"]
[Site "Voronezh"]
[Date "2019.06.13"]
[Round "2.10"]
[White "Rudakov, Sergey S."]
[Black "Abramov, Ilya"]
[Result "1-0"]
[ECO "B02"]
[WhiteElo "1880"]
[BlackElo "2098"]
[Annotator "NA RC"]
[PlyCount "87"]
[EventDate "2019.06.12"]
[EventType "swiss"]
[EventCountry "RUS"]
[SourceTitle "playchess.com"]
[Source "ChessBase"]
[SourceQuality "1"]
[TimeControl "40/5400+30:1800+30"]

1. e4 {[%emt 0:00:00]} Nf6 {[%emt 0:00:00]} 2. Nc3 {[%emt 0:00:00]} d5 {[%emt 0:00:00]} 3. exd5 {[%emt 0:00:00]} Nxd5 {[%emt 0:00:00]} 4. Bc4 {[%emt 0:00:00]} e6 {[%emt 0:00:52]} 5. Nf3 {[%emt 0:01:11]} Nxc3 {[%emt 0:00:09]} 6. bxc3 {[%emt 0:00:06]} Be7 {[%emt 0:00:14]} 7. d4 {[%emt 0:00:21]} O-O {[%emt 0:00:57]} 8. Ne5 {[%emt 0:00:45]} Nd7 {[%emt 0:02:38]} 9. Qe2 {[%emt 0:02:40]} c5 {[%emt 0:01:49]} 10. O-O {[%emt 0:01:31]} Nxe5 {[%emt 0:07:42]} 11. dxe5 {[%emt 0:00:26]} Qa5 {[%emt 0:01:57]} 12. Bd2 {[%emt 0:05:42]} Bd7 {[%emt 0:00:14]} 13. Bd3 {[%emt 0:00:33]} Bc6 {[%emt 0:00:09]} 14. c4 {[%emt 0:00:26]} Qc7 {[%emt 0:00:04]} 15. f4 {[%emt 0:00:31]} Rad8 {[%emt 0:07:38]} 16. Bc3 {[%emt 0:01:21]} g6 {[%emt 0:03:35]} 17. Qg4 {[%emt 0:00:45]} b5 {[%emt 0:10:49]} 18. cxb5 {[%emt 0:00:30]} c4 {[%emt 0:00:01]} 19. Bxg6 {[%emt 0:01:39]} hxg6 {[%emt 0:00:06]} 20. bxc6 {[%emt 0:00:05]} Qxc6 {[%emt 0:00:22]} 21. Rae1 {[%emt 0:05:48]} Qa4 {[%emt 0:03:53]} 22. Re2 {[%emt 0:02:07]} Rd5 {[%emt 0:02:45]} 23. h4 {[%emt 0:01:16]} Bc5+ {[%emt 0:01:40]} 24. Kh2 {[%emt 0:00:11]} Qa3 {[%emt 0:03:43]} 25. Rf3 {[%emt 0:00:27]} Qc1 {[%emt 0:00:53]} 26. h5 {[%emt 0:02:03]} Rd1 {[%emt 0:13:30]} 27. hxg6 {[%emt 0:00:23]} Rh1+ {[%emt 0:00:17]} 28. Kg3 {[%emt 0:00:06]} Qg1 {[%emt 0:00:28]} 29. Rff2 {[%emt 0:02:51]} Rh6 {[%emt 0:14:23]} 30. gxf7+ {[%emt 0:01:14]} Kxf7 {[%emt 0:00:02]} 31. f5 {[%emt 0:03:16]} Bxf2+ {[%emt 0:04:25]} 32. Rxf2 {[%emt 0:00:09]} Qh2+ {[%emt 0:00:03]} 33. Kf3 {[%emt 0:00:18]} Qh5 {[%emt 0:00:05]} 34. Rd2 {[%emt 0:05:26]} Qxg4+ {[%emt 0:02:01]} 35. Kxg4 {[%emt 0:00:08]} exf5+ {[%emt 0:00:10]} 36. Kxf5 {[%emt 0:00:35]} Ke8+ {[%emt 0:01:53]} 37. Ke4 {[%emt 0:00:58]} Rf7 {[%emt 0:01:23]} 38. Bb4 {[%emt 0:01:49]} Rh4+ {[%emt 0:01:29]} 39. Kd5 {[%emt 0:00:15]} Rd7+ {[%emt 0:00:07]} 40. Bd6 {[%emt 0:00:04]} Rf7 {[%emt 0:04:12]} 41. Rd1 {[%emt 0:30:36]} Rf2 {[%emt 0:30:57]} 42. Rb1 {[%emt 0:00:37]} Rd2+ {[%emt 0:00:59]} 43. Kc6 {[%emt 0:00:04]} Re4 {[%emt 0:01:05]} 44. Rh1 1-0

[Event "23rd Alekhine FIDE 2019"]
[Site "Voronezh"]
[Date "2019.06.13"]
[Round "2.11"]
[White "Ioffe, Evgeny"]
[Black "Usacheva, Glafira"]
[Result "1-0"]
[ECO "B22"]
[WhiteElo "2082"]
[BlackElo "1866"]
[Annotator "NA RC"]
[PlyCount "97"]
[EventDate "2019.06.12"]
[EventType "swiss"]
[EventCountry "RUS"]
[SourceTitle "playchess.com"]
[Source "ChessBase"]
[SourceQuality "1"]
[TimeControl "40/5400+30:1800+30"]

1. e4 {[%emt 0:00:00]} c5 {[%emt 0:00:00]} 2. c3 {[%emt 0:00:00]} Nf6 {[%emt 0:00:00]} 3. e5 {[%emt 0:00:00]} Nd5 {[%emt 0:00:00]} 4. d4 {[%emt 0:00:02]} cxd4 {[%emt 0:00:04]} 5. cxd4 {[%emt 0:00:19]} Nc6 {[%emt 0:00:40]} 6. Nf3 {[%emt 0:00:24]} d6 {[%emt 0:00:23]} 7. Bc4 {[%emt 0:00:50]} Nb6 {[%emt 0:00:16]} 8. Bb5 {[%emt 0:00:28]} dxe5 {[%emt 0:00:45]} 9. Nxe5 {[%emt 0:01:18]} Bd7 {[%emt 0:00:18]} 10. Bxc6 {[%emt 0:00:23]} Bxc6 {[%emt 0:02:08]} 11. Nxc6 {[%emt 0:00:15]} bxc6 {[%emt 0:00:06]} 12. Nc3 {[%emt 0:00:35]} e6 {[%emt 0:05:56]} 13. O-O {[%emt 0:04:52]} Be7 {[%emt 0:04:40]} 14. Be3 {[%emt 0:05:06]} O-O {[%emt 0:03:01]} 15. Rc1 {[%emt 0:00:38]} Rc8 {[%emt 0:05:11]} 16. Qe2 {[%emt 0:06:59]} Bf6 {[%emt 0:13:33]} 17. Rfd1 {[%emt 0:00:57]} Nd5 {[%emt 0:06:49]} 18. Ne4 {[%emt 0:08:26]} g6 {[%emt 0:14:02]} 19. Nxf6+ {[%emt 0:06:42]} Qxf6 {[%emt 0:01:33]} 20. Bh6 {[%emt 0:04:17]} Rfe8 {[%emt 0:07:09]} 21. Qg4 {[%emt 0:02:47]} Rc7 {[%emt 0:06:13]} 22. h4 {[%emt 0:03:09]} Rec8 {[%emt 0:05:21]} 23. Rd3 {[%emt 0:03:56]} c5 {[%emt 0:03:28]} 24. Rxc5 {[%emt 0:02:46]} Rxc5 {[%emt 0:00:48]} 25. dxc5 {[%emt 0:00:09]} Rxc5 {[%emt 0:01:47]} 26. b4 {[%emt 0:05:01]} Rc3 {[%emt 0:01:35]} 27. Rd4 {[%emt 0:04:03]} Rc2 {[%emt 0:01:27]} 28. Qg3 {[%emt 0:01:23]} Rc8 {[%emt 0:04:30]} 29. Rc4 {[%emt 0:02:08]} Re8 {[%emt 0:00:24]} 30. Kh2 {[%emt 0:01:56]} e5 {[%emt 0:01:49]} 31. b5 {[%emt 0:01:45]} Ne7 {[%emt 0:00:32]} 32. Bg5 {[%emt 0:02:52]} Qe6 {[%emt 0:00:45]} 33. Rc7 {[%emt 0:04:10]} f6 {[%emt 0:03:38]} 34. Be3 {[%emt 0:03:08]} Nf5 {[%emt 0:00:25]} 35. Qh3 {[%emt 0:01:47]} e4 {[%emt 0:02:34]} 36. Rxa7 {[%emt 0:01:21]} Qe5+ {[%emt 0:00:08]} 37. g3 {[%emt 0:02:52]} Qxb5 {[%emt 0:02:16]} 38. g4 {[%emt 0:03:22]} Qe5+ {[%emt 0:02:16]} 39. Kg2 {[%emt 0:00:23]} Ne7 {[%emt 0:01:24]} 40. h5 {[%emt 0:02:53]} g5 {[%emt 0:00:40]} 41. Qg3 {[%emt 0:32:26]} Qe6 {[%emt 0:30:21]} 42. Kh3 {[%emt 0:01:19]} Nd5 {[%emt 0:00:16]} 43. a4 {[%emt 0:00:50]} h6 {[%emt 0:01:21]} 44. a5 {[%emt 0:01:36]} f5 {[%emt 0:00:27]} 45. gxf5 {[%emt 0:00:26]} Qxf5+ {[%emt 0:00:05]} 46. Qg4 {[%emt 0:04:43]} Nxe3 {[%emt 0:00:17]} 47. fxe3 {[%emt 0:00:04]} Qf1+ {[%emt 0:00:14]} 48. Qg2 {[%emt 0:00:22]} Qe1 {[%emt 0:00:50]} 49. Qa2+ {[%emt 0:01:02]} 1-0

[Event "23rd Alekhine FIDE 2019"]
[Site "Voronezh"]
[Date "2019.06.13"]
[Round "2.12"]
[White "Ashutosh, Kumar"]
[Black "Zisin, Oleg"]
[Result "1-0"]
[ECO "A20"]
[WhiteElo "1852"]
[BlackElo "2076"]
[Annotator "NA RC"]
[PlyCount "89"]
[EventDate "2019.06.12"]
[EventType "swiss"]
[EventCountry "RUS"]
[SourceTitle "playchess.com"]
[Source "ChessBase"]
[SourceQuality "1"]
[TimeControl "40/5400+30:1800+30"]

1. c4 {[%emt 0:00:00]} e5 {[%emt 0:16:34]} 2. g3 {[%emt 0:00:00]} Nf6 {[%emt 0:00:15]} 3. Bg2 {[%emt 0:00:01]} Nc6 {[%emt 0:09:18]} 4. Nf3 {[%emt 0:00:11]} d5 {[%emt 0:05:36]} 5. cxd5 {[%emt 0:00:11]} Nxd5 {[%emt 0:00:09]} 6. O-O {[%emt 0:00:11]} Be6 {[%emt 0:01:07]} 7. d4 {[%emt 0:05:05]} exd4 {[%emt 0:13:36]} 8. Nxd4 {[%emt 0:01:28]} Nxd4 {[%emt 0:00:33]} 9. Qxd4 {[%emt 0:00:19]} c6 {[%emt 0:01:05]} 10. Nc3 {[%emt 0:08:04]} Nf6 {[%emt 0:01:32]} 11. Qa4 {[%emt 0:05:15]} Be7 {[%emt 0:02:44]} 12. Rd1 {[%emt 0:01:47]} Qc8 {[%emt 0:05:34]} 13. Bf4 {[%emt 0:06:50]} O-O {[%emt 0:01:33]} 14. b4 {[%emt 0:01:40]} a6 {[%emt 0:12:42]} 15. a3 {[%emt 0:02:18]} Nd7 {[%emt 0:03:14]} 16. Ne4 {[%emt 0:05:53]} Nb6 {[%emt 0:02:37]} 17. Qc2 {[%emt 0:01:04]} Bf5 {[%emt 0:01:31]} 18. Qc1 {[%emt 0:08:11]} Re8 {[%emt 0:04:12]} 19. Nc3 {[%emt 0:11:41]} Bf6 {[%emt 0:07:27]} 20. Be3 {[%emt 0:04:41]} Nc4 {[%emt 0:03:34]} 21. Bd4 {[%emt 0:01:10]} Qe6 {[%emt 0:04:48]} 22. e4 {[%emt 0:04:20]} Bh3 {[%emt 0:00:08]} 23. Bxh3 {[%emt 0:10:38]} Qxh3 {[%emt 0:00:01]} 24. Bxf6 {[%emt 0:00:45]} gxf6 {[%emt 0:00:02]} 25. Qf4 {[%emt 0:02:06]} Ne5 {[%emt 0:00:04]} 26. f3 {[%emt 0:00:40]} Qe6 {[%emt 0:01:28]} 27. Ne2 {[%emt 0:00:39]} Ng6 {[%emt 0:00:30]} 28. Qh6 {[%emt 0:00:45]} Qe5 {[%emt 0:00:51]} 29. Nd4 {[%emt 0:02:14]} Ne7 {[%emt 0:01:03]} 30. Rac1 {[%emt 0:01:26]} Qg5 {[%emt 0:00:02]} 31. Qxg5+ {[%emt 0:01:58]} fxg5 {[%emt 0:00:01]} 32. Nb3 {[%emt 0:00:27]} f5 {[%emt 0:01:07]} 33. Nc5 {[%emt 0:00:34]} a5 {[%emt 0:00:45]} 34. Ne6 {[%emt 0:01:08]} Rec8 {[%emt 0:00:43]} 35. Rd7 {[%emt 0:00:32]} Ng6 {[%emt 0:00:29]} 36. exf5 {[%emt 0:01:17]} Ne5 {[%emt 0:00:01]} 37. Rg7+ {[%emt 0:00:52]} Kh8 {[%emt 0:00:01]} 38. f4 {[%emt 0:01:04]} gxf4 {[%emt 0:00:17]} 39. gxf4 {[%emt 0:00:17]} Nd3 {[%emt 0:00:01]} 40. Rd1 {[%emt 0:01:13]} Nxf4 {[%emt 0:00:16]} 41. Rdd7 {[%emt 0:30:19]} Nxe6 {[%emt 0:32:19]} 42. Rxh7+ {[%emt 0:00:23]} Kg8 {[%emt 0:00:01]} 43. fxe6 {[%emt 0:00:03]} Re8 {[%emt 0:00:32]} 44. Rdg7+ {[%emt 0:00:49]} Kf8 {[%emt 0:00:01]} 45. e7+ {[%emt 0:00:38]} 1-0

[Event "23rd Alekhine FIDE 2019"]
[Site "Voronezh"]
[Date "2019.06.13"]
[Round "2.13"]
[White "Peschansky, Mikhail"]
[Black "Yaurov, Egor"]
[Result "1/2-1/2"]
[ECO "A13"]
[WhiteElo "2075"]
[BlackElo "1840"]
[Annotator "NA RC"]
[PlyCount "45"]
[EventDate "2019.06.12"]
[EventType "swiss"]
[EventCountry "RUS"]
[SourceTitle "playchess.com"]
[Source "ChessBase"]
[SourceQuality "1"]
[TimeControl "40/5400+30:1800+30"]

1. c4 {[%emt 0:00:00]} e6 {[%emt 0:00:00]} 2. g3 {[%emt 0:00:11]} d5 {[%emt 0:00:05]} 3. Bg2 {[%emt 0:00:48]} Nf6 {[%emt 0:01:10]} 4. Nf3 {[%emt 0:00:46]} Nbd7 {[%emt 0:00:38]} 5. O-O {[%emt 0:03:07]} b6 {[%emt 0:00:33]} 6. Nc3 {[%emt 0:04:31]} Bb7 {[%emt 0:00:19]} 7. d4 {[%emt 0:01:55]} Be7 {[%emt 0:10:55]} 8. Bf4 {[%emt 0:07:03]} a6 {[%emt 0:04:17]} 9. Ne5 {[%emt 0:02:21]} O-O {[%emt 0:05:51]} 10. Qa4 {[%emt 0:10:26]} c6 {[%emt 0:09:52]} 11. Nxc6 {[%emt 0:06:03]} Bxc6 {[%emt 0:00:08]} 12. Qxc6 {[%emt 0:00:02]} Rc8 {[%emt 0:00:07]} 13. cxd5 {[%emt 0:03:54]} Rxc6 {[%emt 0:00:33]} 14. dxc6 {[%emt 0:00:04]} Nh5 {[%emt 0:01:00]} 15. cxd7 {[%emt 0:01:02]} Nxf4 {[%emt 0:00:18]} 16. gxf4 {[%emt 0:00:04]} Qxd7 {[%emt 0:00:08]} 17. Rfd1 {[%emt 0:01:10]} Qd6 {[%emt 0:04:48]} 18. e3 {[%emt 0:00:20]} f5 {[%emt 0:00:33]} 19. Rd2 {[%emt 0:03:22]} Bf6 {[%emt 0:02:03]} 20. Rc1 {[%emt 0:01:40]} Rf7 {[%emt 0:01:32]} 21. Rdc2 {[%emt 0:11:54]} Rc7 {[%emt 0:02:51]} 22. a3 {[%emt 0:00:13]} Qd7 {[%emt 0:09:28]} 23. Bf1 {[%emt 0:06:27]} 1/2-1/2

[Event "23rd Alekhine FIDE 2019"]
[Site "Voronezh"]
[Date "2019.06.13"]
[Round "2.14"]
[White "Khripachenko, Alexander"]
[Black "Yakimenko, Alexander A."]
[Result "1/2-1/2"]
[ECO "C46"]
[WhiteElo "1838"]
[BlackElo "2072"]
[Annotator "NA RC"]
[PlyCount "80"]
[EventDate "2019.06.12"]
[EventType "swiss"]
[EventCountry "RUS"]
[SourceTitle "playchess.com"]
[Source "ChessBase"]
[SourceQuality "1"]
[TimeControl "40/5400+30:1800+30"]

1. e4 {[%emt 0:00:00]} e5 {[%emt 0:00:00]} 2. Nf3 {[%emt 0:00:00]} Nc6 {[%emt 0:00:00]} 3. Nc3 {[%emt 0:00:00]} Nge7 {[%emt 0:01:57]} 4. d4 {[%emt 0:00:23]} exd4 {[%emt 0:00:06]} 5. Nxd4 {[%emt 0:00:06]} Nxd4 {[%emt 0:01:48]} 6. Qxd4 {[%emt 0:00:12]} Nc6 {[%emt 0:00:03]} 7. Qd2 {[%emt 0:03:12]} Bc5 {[%emt 0:05:17]} 8. b3 {[%emt 0:06:12]} O-O {[%emt 0:05:40]} 9. Bb2 {[%emt 0:00:14]} Qf6 {[%emt 0:02:30]} 10. Bd3 {[%emt 0:02:03]} d5 {[%emt 0:03:27]} 11. O-O-O {[%emt 0:02:26]} d4 {[%emt 0:04:52]} 12. Nd5 {[%emt 0:01:09]} Qd6 {[%emt 0:00:57]} 13. Kb1 {[%emt 0:00:44]} Nb4 {[%emt 0:07:24]} 14. Bc4 {[%emt 0:04:39]} Nxd5 {[%emt 0:18:16]} 15. exd5 {[%emt 0:01:20]} Bg4 {[%emt 0:01:02]} 16. f3 {[%emt 0:00:26]} Bd7 {[%emt 0:00:10]} 17. Bxd4 {[%emt 0:00:16]} b5 {[%emt 0:02:30]} 18. Bxc5 {[%emt 0:00:46]} Qxc5 {[%emt 0:00:02]} 19. Bd3 {[%emt 0:00:12]} a5 {[%emt 0:01:17]} 20. Rhe1 {[%emt 0:01:58]} b4 {[%emt 0:01:16]} 21. Qe3 {[%emt 0:01:14]} Qd6 {[%emt 0:04:44]} 22. Qe7 {[%emt 0:01:08]} Rfe8 {[%emt 0:00:47]} 23. Qxd6 {[%emt 0:00:10]} cxd6 {[%emt 0:00:01]} 24. Kc1 {[%emt 0:00:55]} Kf8 {[%emt 0:00:25]} 25. Kd2 {[%emt 0:00:06]} Rec8 {[%emt 0:02:02]} 26. Re3 {[%emt 0:03:24]} Rc5 {[%emt 0:01:11]} 27. Bc4 {[%emt 0:02:17]} g6 {[%emt 0:07:47]} 28. a3 {[%emt 0:08:21]} Bb5 {[%emt 0:08:21]} 29. Bxb5 {[%emt 0:01:26]} Rxb5 {[%emt 0:00:01]} 30. c4 {[%emt 0:00:20]} bxc3+ {[%emt 0:00:32]} 31. Kxc3 {[%emt 0:00:08]} Rc8+ {[%emt 0:02:25]} 32. Kb2 {[%emt 0:00:26]} Rcc5 {[%emt 0:01:49]} 33. Red3 {[%emt 0:00:43]} Ke7 {[%emt 0:00:25]} 34. Rd4 {[%emt 0:00:44]} h5 {[%emt 0:02:05]} 35. f4 {[%emt 0:00:46]} Kf6 {[%emt 0:00:42]} 36. b4 {[%emt 0:02:22]} a4 {[%emt 0:01:47]} 37. R1d2 {[%emt 0:00:38]} Kf5 {[%emt 0:00:38]} 38. h3 {[%emt 0:00:19]} h4 {[%emt 0:00:30]} 39. Rd1 {[%emt 0:00:07]} Kf6 {[%emt 0:00:36]} 40. R1d2 {[%emt 0:00:18]} Kf5 1/2-1/2

[Event "23rd Alekhine FIDE 2019"]
[Site "Voronezh"]
[Date "2019.06.14"]
[Round "3.2"]
[White "Mezhov, Dmitriy"]
[Black "Eliseev, Mikhail"]
[Result "0-1"]
[ECO "B38"]
[WhiteElo "1974"]
[BlackElo "2169"]
[Annotator "NA"]
[PlyCount "82"]
[EventDate "2019.06.12"]
[EventType "swiss"]
[EventCountry "RUS"]
[SourceTitle "playchess.com"]
[Source "ChessBase"]
[SourceQuality "1"]
[TimeControl "40/5400+30:1800+30"]

1. e4 {[%emt 0:00:00]} c5 {[%emt 0:00:59]} 2. Nf3 {[%emt 0:00:22]} g6 {[%emt 0:00:05]} 3. c4 {[%emt 0:00:04]} Nc6 {[%emt 0:00:18]} 4. d4 {[%emt 0:01:48]} cxd4 {[%emt 0:00:06]} 5. Nxd4 {[%emt 0:00:03]} Bg7 {[%emt 0:00:07]} 6. Be3 {[%emt 0:00:05]} Nf6 {[%emt 0:00:08]} 7. Nc3 {[%emt 0:00:08]} O-O {[%emt 0:00:35]} 8. Be2 {[%emt 0:00:46]} d6 {[%emt 0:00:51]} 9. O-O {[%emt 0:02:10]} Bd7 {[%emt 0:01:22]} 10. f4 {[%emt 0:09:40]} Nxd4 {[%emt 0:15:35]} 11. Bxd4 {[%emt 0:00:08]} Bc6 {[%emt 0:00:07]} 12. Bf3 {[%emt 0:00:54]} a5 {[%emt 0:02:32]} 13. Nd5 {[%emt 0:02:20]} Bxd5 {[%emt 0:00:12]} 14. cxd5 {[%emt 0:01:49]} Nd7 {[%emt 0:01:51]} 15. Bxg7 {[%emt 0:01:43]} Kxg7 {[%emt 0:00:00]} 16. Qd4+ {[%emt 0:00:06]} Kg8 {[%emt 0:00:08]} 17. Rac1 {[%emt 0:01:41]} Nc5 {[%emt 0:01:32]} 18. h4 {[%emt 0:01:31]} Qb6 {[%emt 0:03:11]} 19. h5 {[%emt 0:01:16]} Rac8 {[%emt 0:02:23]} 20. Bg4 {[%emt 0:12:36]} f5 21. exf5 {[%emt 0:01:32]} gxf5 {[%emt 0:05:07]} 22. Bxf5 {[%emt 0:00:03]} Rxf5 {[%emt 0:02:34]} 23. h6 {[%emt 0:00:05]} Rf6 {[%emt 0:01:55]} 24. Rf3 {[%emt 0:00:58]} Kf7 {[%emt 0:05:33]} 25. Rg3 {[%emt 0:00:38]} Rg8 {[%emt 0:00:14]} 26. Re3 {[%emt 0:01:30]} Rfg6 {[%emt 0:15:09]} 27. Rc2 {[%emt 0:00:05]} Qb4 {[%emt 0:05:37]} 28. Qd1 {[%emt 0:01:36]} Rxh6 {[%emt 0:01:40]} 29. Qe2 {[%emt 0:02:05]} Re8 {[%emt 0:00:50]} 30. Qg4 {[%emt 0:00:06]} Qd4 {[%emt 0:00:58]} 31. Rce2 {[%emt 0:00:43]} Qxd5 {[%emt 0:06:06]} 32. f5 {[%emt 0:01:44]} Qd1+ {[%emt 0:02:51]} 33. Kf2 {[%emt 0:01:07]} Nd3+ {[%emt 0:00:14]} 34. Kg3 {[%emt 0:00:06]} Ne5 {[%emt 0:00:14]} 35. Rxe5 {[%emt 0:02:24]} dxe5 {[%emt 0:00:10]} 36. Qc4+ {[%emt 0:00:03]} Kf8 {[%emt 0:01:25]} 37. Rxe5 {[%emt 0:00:14]} Qd6 {[%emt 0:00:29]} 38. Qf4 {[%emt 0:00:48]} Rd8 {[%emt 0:01:05]} 39. Kg4 {[%emt 0:00:16]} Qd1+ {[%emt 0:00:34]} 40. Kg3 {[%emt 0:00:01]} Rd3+ {[%emt 0:01:16]} 41. Re3 {[%emt 0:30:02]} Qe1+ {[%emt 0:31:06]} 0-1

[Event "23rd Alekhine FIDE 2019"]
[Site "Voronezh"]
[Date "2019.06.14"]
[Round "3.3"]
[White "Krupin, Victor"]
[Black "Shaydullina, Sandugach"]
[Result "1/2-1/2"]
[ECO "B57"]
[WhiteElo "1958"]
[BlackElo "2128"]
[Annotator "NA"]
[PlyCount "83"]
[EventDate "2019.06.12"]
[EventType "swiss"]
[EventCountry "RUS"]
[SourceTitle "playchess.com"]
[Source "ChessBase"]
[SourceQuality "1"]
[TimeControl "40/5400+30:1800+30"]

1. e4 {[%emt 0:00:00]} c5 {[%emt 0:01:19]} 2. Nf3 {[%emt 0:00:00]} d6 {[%emt 0:00:09]} 3. d4 {[%emt 0:00:16]} cxd4 {[%emt 0:00:31]} 4. Nxd4 {[%emt 0:00:12]} Nf6 {[%emt 0:00:10]} 5. Nc3 {[%emt 0:00:25]} Nc6 {[%emt 0:00:04]} 6. Bc4 {[%emt 0:00:27]} Qb6 {[%emt 0:00:17]} 7. Nde2 {[%emt 0:02:55]} e6 {[%emt 0:00:39]} 8. Bb3 {[%emt 0:00:52]} Be7 {[%emt 0:00:36]} 9. Be3 {[%emt 0:00:34]} Qc7 {[%emt 0:00:04]} 10. f3 {[%emt 0:00:57]} a6 {[%emt 0:00:11]} 11. Qd2 {[%emt 0:00:27]} Na5 {[%emt 0:01:23]} 12. O-O-O {[%emt 0:01:47]} Nxb3+ {[%emt 0:00:49]} 13. axb3 {[%emt 0:00:14]} O-O {[%emt 0:00:09]} 14. g4 {[%emt 0:00:21]} b5 {[%emt 0:00:16]} 15. g5 {[%emt 0:00:43]} Nd7 {[%emt 0:00:10]} 16. h4 {[%emt 0:00:25]} Bb7 17. h5 {[%emt 0:01:04]} Rfc8 {[%emt 0:09:48]} 18. Kb1 {[%emt 0:01:41]} b4 {[%emt 0:01:47]} 19. Na4 {[%emt 0:00:40]} Bc6 {[%emt 0:00:13]} 20. Nd4 {[%emt 0:03:34]} Qa5 {[%emt 0:03:48]} 21. g6 {[%emt 0:08:27]} Bxa4 {[%emt 0:00:45]} 22. gxf7+ {[%emt 0:00:33]} Kxf7 {[%emt 0:00:07]} 23. bxa4 {[%emt 0:00:22]} Qxa4 {[%emt 0:02:56]} 24. Nxe6 {[%emt 0:03:00]} b3 {[%emt 0:00:09]} 25. cxb3 {[%emt 0:00:41]} Qxb3 {[%emt 0:00:12]} 26. Nd4 {[%emt 0:01:01]} Qb7 {[%emt 0:02:34]} 27. Nf5 {[%emt 0:01:02]} Ne5 {[%emt 0:03:06]} 28. Qg2 {[%emt 0:07:55]} Rg8 {[%emt 0:00:25]} 29. Bg5 {[%emt 0:09:39]} Bf8 {[%emt 0:00:59]} 30. Nxd6+ {[%emt 0:05:46]} Bxd6 31. Rxd6 {[%emt 0:00:26]} Nc4 {[%emt 0:01:10]} 32. Rd3 {[%emt 0:02:09]} Rab8 {[%emt 0:01:17]} 33. Bc1 {[%emt 0:01:17]} Rgc8 {[%emt 0:03:24]} 34. Rhd1 {[%emt 0:01:36]} Kg8 {[%emt 0:00:14]} 35. Rd7 {[%emt 0:11:18]} Na3+ {[%emt 0:00:17]} 36. Ka1 {[%emt 0:00:16]} Rxc1+ 37. Rxc1 {[%emt 0:00:51]} Qxd7 {[%emt 0:00:26]} 38. bxa3 {[%emt 0:01:51]} Rb3 {[%emt 0:02:15]} 39. Ka2 {[%emt 0:03:33]} Qe6 {[%emt 0:02:58]} 40. Rc8+ {[%emt 0:01:27]} Kf7 {[%emt 0:00:48]} 41. Rc7+ {[%emt 0:30:47]} Ke8 {[%emt 0:30:09]} 42. Qg4 {[%emt 0:05:47]} 1/2-1/2

[Event "23rd Alekhine FIDE 2019"]
[Site "Voronezh"]
[Date "2019.06.14"]
[Round "3.4"]
[White "Kholodov, Vladimir"]
[Black "Skvortsov, Andrei"]
[Result "0-1"]
[ECO "B02"]
[WhiteElo "1939"]
[BlackElo "2123"]
[Annotator "NA"]
[PlyCount "96"]
[EventDate "2019.06.12"]
[EventType "swiss"]
[EventCountry "RUS"]
[SourceTitle "playchess.com"]
[Source "ChessBase"]
[SourceQuality "1"]
[TimeControl "40/5400+30:1800+30"]

1. e4 {[%emt 0:00:00]} Nf6 {[%emt 0:11:51]} 2. Nc3 {[%emt 0:02:59]} d5 {[%emt 0:00:22]} 3. exd5 {[%emt 0:01:11]} Nxd5 {[%emt 0:01:25]} 4. Bc4 {[%emt 0:00:31]} Nb6 {[%emt 0:00:19]} 5. Bb3 {[%emt 0:00:15]} Nc6 {[%emt 0:00:43]} 6. Qf3 e6 7. Nge2 {[%emt 0:02:12]} Be7 {[%emt 0:01:16]} 8. O-O {[%emt 0:00:38]} O-O {[%emt 0:00:06]} 9. d3 {[%emt 0:00:30]} Bg5 {[%emt 0:00:48]} 10. Bxg5 {[%emt 0:01:35]} Qxg5 {[%emt 0:00:02]} 11. Ne4 {[%emt 0:00:17]} Qh6 {[%emt 0:00:54]} 12. c3 {[%emt 0:00:45]} e5 {[%emt 0:03:36]} 13. Rad1 {[%emt 0:00:52]} Be6 {[%emt 0:01:03]} 14. Nc5 {[%emt 0:00:28]} Bxb3 {[%emt 0:00:12]} 15. axb3 {[%emt 0:00:31]} Rab8 {[%emt 0:00:20]} 16. d4 {[%emt 0:00:22]} Rfe8 {[%emt 0:02:23]} 17. d5 {[%emt 0:00:22]} Ne7 {[%emt 0:00:14]} 18. c4 {[%emt 0:01:36]} Qd6 {[%emt 0:01:58]} 19. Ne4 {[%emt 0:00:18]} Qg6 {[%emt 0:00:14]} 20. d6 {[%emt 0:00:26]} cxd6 {[%emt 0:00:14]} 21. Nxd6 {[%emt 0:00:25]} Rf8 {[%emt 0:00:32]} 22. Nc3 {[%emt 0:00:42]} Nc6 {[%emt 0:00:53]} 23. c5 {[%emt 0:00:48]} Nd4 {[%emt 0:02:05]} 24. Qh3 {[%emt 0:00:23]} Nc8 {[%emt 0:01:12]} 25. Nc4 {[%emt 0:01:46]} Nc6 {[%emt 0:03:33]} 26. b4 {[%emt 0:00:24]} a6 {[%emt 0:00:22]} 27. Nd5 {[%emt 0:00:26]} Rd8 {[%emt 0:07:26]} 28. Qg3 {[%emt 0:04:41]} f6 {[%emt 0:01:08]} 29. Qb3 {[%emt 0:00:46]} Qf7 {[%emt 0:00:59]} 30. Na5 {[%emt 0:01:02]} Nd4 31. Rxd4 {[%emt 0:02:57]} exd4 {[%emt 0:00:52]} 32. Qg3 {[%emt 0:00:05]} Na7 {[%emt 0:01:21]} 33. Nf4 {[%emt 0:01:11]} d3 34. Nxd3 {[%emt 0:00:26]} Qg6 {[%emt 0:01:35]} 35. Nf4 {[%emt 0:02:09]} Qxg3 36. hxg3 {[%emt 0:00:29]} Nc6 {[%emt 0:00:24]} 37. Re1 {[%emt 0:01:54]} Kf7 {[%emt 0:01:51]} 38. Nc4 {[%emt 0:00:58]} Rd4 {[%emt 0:01:46]} 39. Nd6+ {[%emt 0:00:06]} Kg8 {[%emt 0:00:08]} 40. b5 {[%emt 0:00:51]} axb5 41. Nxb5 {[%emt 0:30:20]} Rb4 {[%emt 0:30:36]} 42. Nd6 {[%emt 0:01:02]} Rxb2 {[%emt 0:00:30]} 43. Re6 {[%emt 0:00:07]} Rc2 {[%emt 0:06:49]} 44. Nxb7 {[%emt 0:01:15]} Rc1+ {[%emt 0:00:51]} 45. Kh2 {[%emt 0:00:12]} Ne5 {[%emt 0:00:01]} 46. Re7 {[%emt 0:02:23]} g5 {[%emt 0:00:42]} 47. Nh5 {[%emt 0:05:19]} Ng4+ {[%emt 0:00:06]} 48. Kh3 {[%emt 0:00:07]} Nxf2+ 0-1

[Event "23rd Alekhine FIDE 2019"]
[Site "Voronezh"]
[Date "2019.06.14"]
[Round "3.5"]
[White "Stepochkin, Fedor"]
[Black "Zakirov, Vladislav"]
[Result "1-0"]
[ECO "C44"]
[WhiteElo "1929"]
[BlackElo "2099"]
[Annotator "NA"]
[PlyCount "53"]
[EventDate "2019.06.12"]
[EventType "swiss"]
[EventCountry "RUS"]
[SourceTitle "playchess.com"]
[Source "ChessBase"]
[SourceQuality "1"]
[TimeControl "40/5400+30:1800+30"]

1. e4 {[%emt 0:00:00]} e5 {[%emt 0:00:00]} 2. Nf3 {[%emt 0:00:00]} Nc6 {[%emt 0:00:00]} 3. d4 {[%emt 0:00:00]} exd4 {[%emt 0:00:00]} 4. Nxd4 {[%emt 0:00:00]} Nf6 {[%emt 0:00:00]} 5. Nxc6 {[%emt 0:00:00]} bxc6 {[%emt 0:00:06]} 6. Bd3 {[%emt 0:00:03]} Bb4+ {[%emt 0:09:14]} 7. c3 {[%emt 0:00:54]} Be7 {[%emt 0:07:32]} 8. O-O {[%emt 0:01:20]} d5 {[%emt 0:03:13]} 9. e5 {[%emt 0:12:53]} Nd7 {[%emt 0:15:51]} 10. f4 {[%emt 0:04:56]} Bc5+ {[%emt 0:05:50]} 11. Kh1 {[%emt 0:00:48]} Qh4 {[%emt 0:07:35]} 12. Nd2 {[%emt 0:03:35]} Bb7 {[%emt 0:05:50]} 13. Bf5 {[%emt 0:13:53]} O-O-O {[%emt 0:04:19]} 14. Nf3 {[%emt 0:00:43]} Qe7 {[%emt 0:01:12]} 15. b4 {[%emt 0:03:19]} Bb6 {[%emt 0:00:07]} 16. a4 {[%emt 0:00:14]} a6 {[%emt 0:01:55]} 17. Ba3 {[%emt 0:04:41]} Kb8 {[%emt 0:02:19]} 18. Nd4 {[%emt 0:02:47]} g6 {[%emt 0:03:54]} 19. b5 {[%emt 0:05:39]} c5 {[%emt 0:01:17]} 20. bxa6 {[%emt 0:02:25]} Ba8 {[%emt 0:01:59]} 21. Bxd7 {[%emt 0:06:34]} Qxd7 {[%emt 0:00:21]} 22. a5 {[%emt 0:00:26]} cxd4 {[%emt 0:04:31]} 23. axb6 {[%emt 0:00:08]} dxc3 {[%emt 0:00:08]} 24. b7 {[%emt 0:01:04]} d4 {[%emt 0:00:04]} 25. Qb3 {[%emt 0:02:01]} Qd5 {[%emt 0:00:06]} 26. a7+ {[%emt 0:00:20]} Kxa7 {[%emt 0:00:10]} 27. Bc5+ {[%emt 0:00:05]} 1-0